fUST/lending_fUST_20250423
["ID","MTS","AMOUNT","RATE_DAILY","PERIOD"]
[358729697,1745404268652,-500.0,0.00022937,2]
[358729698,1745404268662,-500.0,0.00022937,2]
[358729699,1745404268671,-500.0,0.00022937,2]
[358729700,1745404268680,-500.0,0.00022937,2]
[358729701,1745404268690,-500.0,0.00022937,2]
[358729702,1745404268699,-500.0,0.00022937,2]
[358729703,1745404268709,-655.03,0.00022937,2]
[358729704,1745404268719,-500.0,0.00022937,2]
[358729705,1745404268729,-500.0,0.00022937,2]
[358729706,1745404268739,-1087.51,0.00022937,2]
[358729707,1745404268748,-500.0,0.00022937,2]
[358729708,1745404268758,-626.83399361,0.00022937,2]
[358729709,1745404268768,-500.0,0.00022937,2]
[358729710,1745404268778,-500.0,0.00022937,2]
[358729711,1745404268787,-500.0,0.00022938,2]
[358729712,1745404268797,-500.0,0.00022938,2]
[358729713,1745404268806,-500.0,0.00022938,2]
[358729714,1745404268816,-505.29,0.00022938,2]
[358729715,1745404268825,-333.49390341,0.00022938,2]
[358729716,1745404268837,-500.0,0.00022938,2]
[358729717,1745404268846,-516.37,0.00022938,2]
[358729718,1745404268856,-536.98359513,0.00022938,2]
[358729719,1745404268866,-1131.9,0.0002294,2]
[358729720,1745404268875,-500.0,0.0002294,2]
[358729721,1745404268885,-500.0,0.0002294,2]
[358729722,1745404268895,-500.0,0.0002294,2]
[358729723,1745404268906,-525.22,0.0002294,2]
[358729724,1745404268915,-500.0,0.0002294,2]
[358729725,1745404268925,-795.76,0.0002294,2]
[358729726,1745404268935,-956.21,0.0002294,2]
[358729727,1745404268944,-209.02659968,0.00022945,2]
[358729728,1745404268954,-500.0,0.00022945,2]
[358729729,1745404268964,-500.0,0.00022945,2]
[358729730,1745404268974,-160.0,0.00023,3]
[358729731,1745404268983,-152.87287016,0.00023,2]
[358729732,1745404268993,-160.0,0.00023,3]
[358729733,1745404269003,-420.82143104,0.00023,3]
[358729734,1745404269012,-350.0,0.00023014,2]
[358729735,1745404269022,-757.77704784,0.00023014,2]
[358729736,1745404269032,-151.0,0.000232,2]
[358729737,1745404269041,-154.67947591,0.000232,2]
[358729738,1745404269051,-500.87,0.00023206,2]
[358729739,1745404269060,-922.11,0.00023206,2]
[358729740,1745404269070,-1826.39,0.00023206,2]
[358729741,1745404269080,-7833.37,0.00023206,2]
[358729742,1745404269089,-3314.96,0.00023206,2]
[358729743,1745404269099,-1346.69,0.00023206,2]
[358729744,1745404269109,-500.0,0.00023206,2]
[358729745,1745404269118,-965.63,0.00023206,2]
[358729746,1745404269127,-500.0,0.00023206,2]
[358729747,1745404269137,-538.66,0.00023206,2]
[358729748,1745404269147,-500.0,0.00023206,2]
[358729749,1745404269156,-500.0,0.00023207,2]
[358729750,1745404269165,-686.58,0.00023207,2]
[358729751,1745404269175,-1103.57,0.00023207,2]
[358729752,1745404269184,-500.0,0.00023207,2]
[358729753,1745404269194,-1141.6,0.00023207,2]
[358729754,1745404269203,-500.0,0.00023207,2]
[358729755,1745404269212,-371.05732345,0.00023207,2]
[358729756,1745404269222,-500.0,0.00023207,2]
[358729757,1745404269232,-500.0,0.00023207,2]
[358729758,1745404269242,-500.0,0.00023207,2]
[358729759,1745404269251,-527.8,0.00023207,2]
[358729760,1745404269260,-500.0,0.00023207,2]
[358729761,1745404269270,-500.0,0.00023208,2]
[358729762,1745404269279,-3403.98,0.00023208,2]
[358729763,1745404269288,-500.0,0.00023208,2]
[358729764,1745404269298,-500.0,0.00023208,2]
[358729765,1745404269308,-885.27,0.00023208,2]
[358729766,1745404269318,-2206.55,0.00023208,2]
[358729767,1745404269330,-998.75,0.00023208,2]
[358729768,1745404269340,-399.97120746,0.00023211,2]
[358729769,1745404269349,-194.22883219,0.00023211,2]
[358729770,1745404269358,-500.0,0.00023211,2]
[358729771,1745404269368,-500.0,0.00023211,2]
[358729772,1745404269377,-500.0,0.00023211,2]
[358729773,1745404269386,-500.0,0.00023211,2]
[358729774,1745404269396,-617.65,0.00023211,2]
[358729775,1745404269405,-500.0,0.00023211,2]
[358729776,1745404269415,-500.0,0.00023211,2]
[358729777,1745404269427,-597.58835961,0.00023211,2]
[358729778,1745404269436,-500.0,0.00023211,2]
[358729779,1745404269446,-500.0,0.00023211,2]
[358729780,1745404269455,-500.0,0.00023211,2]
[358729781,1745404269467,-655.03,0.00023211,2]
[358729782,1745404269476,-500.0,0.00023211,2]
[358729783,1745404269485,-500.0,0.00023211,2]
[358729784,1745404269495,-1087.51,0.00023211,2]
[358729785,1745404269506,-288.82947791,0.00023211,2]
[358729786,1745404269515,-500.0,0.00023211,2]
[358729787,1745404269525,-500.0,0.00023211,2]
[358729788,1745404269534,-591.26818763,0.00023212,2]
[358729789,1745404269542,-500.0,0.00023212,2]
[358729790,1745404269675,-500.0,0.00023212,2]
[358729791,1745404269684,-505.29,0.00023212,2]
[358729792,1745404269694,-386.25729634,0.00023212,2]
[358729793,1745404269703,-516.37,0.00023212,2]
[358729794,1745404269713,-1131.9,0.00023214,2]
[358729795,1745404269722,-500.0,0.00023214,2]
[358729796,1745404269732,-500.0,0.00023214,2]
[358729797,1745404269741,-500.0,0.00023214,2]
[358729798,1745404269750,-525.22,0.00023214,2]
[358729799,1745404269760,-500.0,0.00023214,2]
[358729800,1745404269770,-795.76,0.00023214,2]
[358729801,1745404269780,-956.21,0.00023214,2]
[358729802,1745404269789,-500.0,0.00023219,2]
[358729803,1745404269799,-157.59391339,0.00023219,2]
[358729804,1745404269808,-900.0,0.0002326,2]
[358729805,1745404269818,-7222.55068407,0.00023348,4]
[358729806,1745404269828,-202.89,0.00023373,2]
[358729807,1745404269837,-151.0,0.000234,7]
[358729808,1745404269847,-500.87,0.0002348,2]
[358729809,1745404269857,-922.11,0.0002348,2]
[358729810,1745404269866,-1826.39,0.0002348,2]
[358729811,1745404269875,-7833.37,0.0002348,2]
[358729812,1745404269884,-3314.96,0.0002348,2]
[358729813,1745404269894,-1346.69,0.0002348,2]
[358729814,1745404269903,-500.0,0.0002348,2]
[358729815,1745404269914,-965.63,0.0002348,2]
[358729816,1745404269923,-500.0,0.0002348,2]
[358729817,1745404269932,-538.66,0.0002348,2]
[358729818,1745404269941,-510.03021762,0.0002348,2]
[358729819,1745404269950,-500.0,0.00023481,2]
[358729820,1745404269959,-686.58,0.00023481,2]
[358729821,1745404269969,-1103.57,0.00023481,2]
[358729822,1745404269979,-500.0,0.00023481,2]
[358729823,1745404269989,-1141.6,0.00023481,2]
[358729824,1745404269998,-500.0,0.00023481,2]
[358729825,1745404270008,-500.0,0.00023481,2]
[358729826,1745404270017,-500.0,0.00023481,2]
[358729827,1745404270027,-500.0,0.00023481,2]
[358729828,1745404270037,-527.8,0.00023481,2]
[358729829,1745404270046,-500.0,0.00023481,2]
[358729830,1745404270056,-151.849418,0.00023482,7]
[358729831,1745404270066,-500.0,0.00023482,2]
[358729832,1745404270075,-151.0,0.00023482,7]
[358729833,1745404270084,-3403.98,0.00023482,2]
[358729834,1745404270094,-500.0,0.00023482,2]
[358729835,1745404270103,-495.52980042,0.00023482,2]
[358729836,1745404270113,-151.0,0.00023482,7]
[358729837,1745404270123,-885.27,0.00023482,2]
[358729838,1745404270132,-2206.55,0.00023482,2]
[358729839,1745404270142,-998.75,0.00023482,2]
[358729840,1745404270151,-500.0,0.00023485,2]
[358729841,1745404270160,-645.87228299,0.00023485,2]
[358729842,1745404270169,-500.0,0.00023485,2]
[358729843,1745404270178,-500.0,0.00023485,2]
[358729844,1745404270188,-617.65,0.00023485,2]
[358729845,1745404270197,-500.0,0.00023485,2]
[358729846,1745404270207,-500.0,0.00023485,2]
[358729847,1745404270216,-500.0,0.00023485,2]
[358729848,1745404270225,-500.0,0.00023485,2]
[358729849,1745404270234,-500.0,0.00023485,2]
[358729850,1745404270244,-655.03,0.00023485,2]
[358729851,1745404270254,-500.0,0.00023485,2]
[358729852,1745404270263,-181.66937767,0.00023485,2]
[358729853,1745404270273,-1087.51,0.00023485,2]
[358729854,1745404270283,-500.0,0.00023485,2]
[358729855,1745404270292,-500.0,0.00023485,2]
[358729856,1745404270301,-500.0,0.00023486,2]
[358729857,1745404270311,-500.0,0.00023486,2]
[358729858,1745404270321,-505.29,0.00023486,2]
[358729859,1745404270332,-516.37,0.00023486,2]
[358729860,1745404270343,-1131.9,0.00023488,2]
[358729861,1745404270353,-500.0,0.00023488,2]
[358729862,1745404270362,-288.16835763,0.00023488,2]
[358729863,1745404270372,-500.0,0.00023488,2]
[358729864,1745404270382,-525.22,0.00023488,2]
[358729865,1745404270394,-500.0,0.00023488,2]
[358729866,1745404270404,-795.76,0.00023488,2]
[358729867,1745404270414,-956.21,0.00023488,2]
[358729868,1745404270426,-500.0,0.00023493,2]
[358729869,1745404270435,-160.0,0.000235,7]
[358729870,1745404270445,-587.0,0.00023512,2]
[358729871,1745404270454,-450.0,0.00023562,2]
[358729872,1745404270464,-151.0,0.00023748,2]
[358729873,1745404270473,-500.87,0.00023754,2]
[358729874,1745404270482,-922.11,0.00023754,2]
[358729875,1745404270492,-1826.39,0.00023754,2]
[358729876,1745404270501,-7833.37,0.00023754,2]
[358729877,1745404270511,-3314.96,0.00023754,2]
[358729878,1745404270521,-1346.69,0.00023754,2]
[358729879,1745404270530,-500.0,0.00023754,2]
[358729880,1745404270540,-965.63,0.00023754,2]
[358729881,1745404270550,-500.0,0.00023754,2]
[358729882,1745404270560,-538.66,0.00023754,2]
[358729883,1745404270570,-500.0,0.00023755,2]
[358729884,1745404270579,-686.58,0.00023755,2]
[358729885,1745404270589,-1103.57,0.00023755,2]
[358729886,1745404270598,-500.0,0.00023755,2]
[358729887,1745404270608,-1141.6,0.00023755,2]
[358729888,1745404270617,-500.0,0.00023755,2]
[358729889,1745404270626,-500.0,0.00023755,2]
[358729890,1745404270635,-500.0,0.00023755,2]
[358729891,1745404270646,-500.0,0.00023755,2]
[358729892,1745404270655,-527.8,0.00023755,2]
[358729893,1745404270664,-500.0,0.00023755,2]
[358729894,1745404270674,-500.0,0.00023756,2]
[358729895,1745404270683,-3403.98,0.00023756,2]
[358729896,1745404270692,-500.0,0.00023756,2]
[358729897,1745404270702,-885.27,0.00023756,2]
[358729898,1745404270712,-2206.55,0.00023756,2]
[358729899,1745404270722,-998.75,0.00023756,2]
[358729900,1745404270732,-500.0,0.00023759,2]
[358729901,1745404270742,-500.0,0.00023759,2]
[358729902,1745404270751,-500.0,0.00023759,2]
[358729903,1745404270761,-617.65,0.00023759,2]
[358729904,1745404270771,-500.0,0.00023759,2]
[358729905,1745404270781,-500.0,0.00023759,2]
[358729906,1745404270791,-314.76295016,0.00023759,2]
[358729907,1745404270800,-500.0,0.00023759,2]
[358729908,1745404270810,-194.72937624,0.00023759,2]
[358729909,1745404270820,-655.03,0.00023759,2]
[358729910,1745404270830,-500.0,0.00023759,2]
[358729911,1745404270840,-1087.51,0.00023759,2]
[358729912,1745404270849,-500.0,0.00023759,2]
[358729913,1745404270860,-500.0,0.00023759,2]
[358729914,1745404270870,-500.0,0.0002376,2]
[358729915,1745404270879,-500.0,0.0002376,2]
[358729916,1745404270888,-505.29,0.0002376,2]
[358729917,1745404270897,-516.37,0.0002376,2]
[358729918,1745404270907,-1131.9,0.00023762,2]
[358729919,1745404270917,-500.0,0.00023762,2]
[358729920,1745404270927,-500.0,0.00023762,2]
[358729921,1745404270936,-525.22,0.00023762,2]
[358729922,1745404270946,-500.0,0.00023762,2]
[358729923,1745404270955,-795.76,0.00023762,2]
[358729924,1745404270965,-956.21,0.00023762,2]
[358729925,1745404270974,-448.96,0.00023767,2]
[358729926,1745404270984,-151.0,0.000239,5]
[358729927,1745404270994,-224.31668005,0.000239,2]
[358729928,1745404271004,-160.0,0.00024,7]
[358729929,1745404271013,-500.87,0.00024028,2]
[358729930,1745404271022,-922.11,0.00024028,2]
[358729931,1745404271032,-1826.39,0.00024028,2]
[358729932,1745404271041,-7833.37,0.00024028,2]
[358729933,1745404271051,-3314.96,0.00024028,2]
[358729934,1745404271061,-1346.69,0.00024028,2]
[358729935,1745404271071,-500.0,0.00024028,2]
[358729936,1745404271082,-965.63,0.00024028,2]
[358729937,1745404271095,-500.0,0.00024028,2]
[358729938,1745404271105,-538.66,0.00024028,2]
[358729939,1745404271114,-500.0,0.00024029,2]
[358729940,1745404271124,-686.58,0.00024029,2]
[358729941,1745404271134,-1103.57,0.00024029,2]
[358729942,1745404271144,-500.0,0.00024029,2]
[358729943,1745404271153,-1141.6,0.00024029,2]
[358729944,1745404271266,-500.0,0.00024029,2]
[358729945,1745404271275,-500.0,0.00024029,2]
[358729946,1745404271284,-500.0,0.00024029,2]
[358729947,1745404271294,-500.0,0.00024029,2]
[358729948,1745404271303,-527.8,0.00024029,2]
[358729949,1745404271312,-500.0,0.00024029,2]
[358729950,1745404271322,-500.0,0.0002403,2]
[358729951,1745404271331,-3403.98,0.0002403,2]
[358729952,1745404271341,-151.0,0.0002403,7]
[358729953,1745404271350,-630.80592243,0.0002403,2]
[358729954,1745404271360,-885.27,0.0002403,2]
[358729955,1745404271369,-2206.55,0.0002403,2]
[358729956,1745404271379,-998.75,0.0002403,2]
[358729957,1745404271388,-500.0,0.00024033,2]
[358729958,1745404271397,-500.0,0.00024033,2]
[358729959,1745404271406,-500.0,0.00024033,2]
[358729960,1745404271416,-617.65,0.00024033,2]
[358729961,1745404271429,-255.13950864,0.00024033,2]
[358729962,1745404271438,-500.0,0.00024033,2]
[358729963,1745404271448,-500.0,0.00024033,2]
[358729964,1745404271458,-655.03,0.00024033,2]
[358729965,1745404271467,-500.0,0.00024033,2]
[358729966,1745404271477,-1087.51,0.00024033,2]
[358729967,1745404271486,-500.0,0.00024033,2]
[358729968,1745404271495,-500.0,0.00024034,2]
[358729969,1745404271507,-500.0,0.00024034,2]
[358729970,1745404271517,-505.29,0.00024034,2]
[358729971,1745404271526,-516.37,0.00024034,2]
[358729972,1745404271536,-1131.9,0.00024036,2]
[358729973,1745404271545,-459.01355922,0.00024036,2]
[358729974,1745404271554,-500.0,0.00024036,2]
[358729975,1745404271564,-525.22,0.00024036,2]
[358729976,1745404271573,-500.0,0.00024036,2]
[358729977,1745404271583,-795.76,0.00024036,2]
[358729978,1745404271593,-956.21,0.00024036,2]
[358729979,1745404271603,-7222.55068407,0.00024038,5]
[358729980,1745404271612,-260.44,0.00024109,2]
[358729981,1745404271622,-260.44,0.00024109,2]
[358729982,1745404271632,-260.44,0.00024109,2]
[358729983,1745404271641,-260.44,0.00024109,2]
[358729984,1745404271651,-260.44,0.00024109,2]
[358729985,1745404271660,-260.44,0.00024109,2]
[358729986,1745404271670,-260.44,0.00024109,2]
[358729987,1745404271679,-260.44,0.00024109,2]
[358729988,1745404271688,-260.44,0.00024109,2]
[358729989,1745404271697,-260.44,0.00024109,2]
[358729990,1745404271706,-260.44,0.00024109,2]
[358729991,1745404271716,-260.44,0.00024109,2]
[358729992,1745404271725,-260.44,0.00024109,2]
[358729993,1745404271734,-260.44,0.00024109,2]
[358729994,1745404271745,-260.44,0.00024109,2]
[358729995,1745404271754,-260.44,0.00024109,2]
[358729996,1745404271764,-550.0,0.0002411,2]
[358729997,1745404271774,-151.0,0.00024296,2]
[358729998,1745404271783,-500.87,0.00024302,2]
[358729999,1745404271793,-922.11,0.00024302,2]
[358730000,1745404271802,-1826.39,0.00024302,2]
[358730001,1745404271813,-7833.37,0.00024302,2]
[358730002,1745404271823,-3314.96,0.00024302,2]
[358730003,1745404271833,-1346.69,0.00024302,2]
[358730004,1745404271843,-500.0,0.00024302,2]
[358730005,1745404271853,-965.63,0.00024302,2]
[358730006,1745404271863,-500.0,0.00024302,2]
[358730007,1745404271873,-538.66,0.00024302,2]
[358730008,1745404271883,-500.0,0.00024303,2]
[358730009,1745404271893,-686.58,0.00024303,2]
[358730010,1745404271905,-1103.57,0.00024303,2]
[358730011,1745404271915,-500.0,0.00024303,2]
[358730012,1745404271924,-1141.6,0.00024303,2]
[358730013,1745404271934,-500.0,0.00024303,2]
[358730014,1745404271950,-500.0,0.00024303,2]
[358730015,1745404271972,-500.0,0.00024303,2]
[358730016,1745404271991,-500.0,0.00024303,2]
[358730017,1745404272011,-527.8,0.00024303,2]
[358730018,1745404272032,-500.0,0.00024303,2]
[358730019,1745404272050,-500.0,0.00024304,2]
[358730020,1745404272068,-3403.98,0.00024304,2]
[358730021,1745404272088,-885.27,0.00024304,2]
[358730022,1745404272103,-2206.55,0.00024304,2]
[358730023,1745404272123,-998.75,0.00024304,2]
[358730024,1745404272142,-500.0,0.00024307,2]
[358730025,1745404272161,-500.0,0.00024307,2]
[358730026,1745404272173,-500.0,0.00024307,2]
[358730027,1745404272192,-617.65,0.00024307,2]
[358730028,1745404272207,-500.0,0.00024307,2]
[358730029,1745404272224,-500.0,0.00024307,2]
[358730030,1745404272237,-260.44,0.00024307,2]
[358730031,1745404272253,-655.03,0.00024307,2]
[358730032,1745404272273,-500.0,0.00024307,2]
[358730033,1745404272289,-151.0,0.00024307,7]
[358730034,1745404272306,-151.0,0.00024307,7]
[358730035,1745404272321,-1087.51,0.00024307,2]
[358730036,1745404272338,-500.0,0.00024307,2]
[358730037,1745404272354,-500.0,0.00024308,2]
[358730038,1745404272369,-500.0,0.00024308,2]
[358730039,1745404272385,-505.29,0.00024308,2]
[358730040,1745404272400,-516.37,0.00024308,2]
[358730041,1745404272416,-1131.9,0.0002431,2]
[358730042,1745404272434,-168.87149251,0.0002431,2]
[358730043,1745404272450,-525.22,0.0002431,2]
[358730044,1745404272465,-500.0,0.0002431,2]
[358730045,1745404272482,-795.76,0.0002431,2]
[358730046,1745404272498,-956.21,0.0002431,2]
[358730047,1745404272513,-151.0,0.00024311,7]
[358730048,1745404272528,-151.0,0.00024311,7]
[358730049,1745404272542,-1000.0,0.00024314,14]
[358730050,1745404272557,-1000.0,0.00024314,14]
[358730051,1745404272572,-1000.0,0.00024314,14]
[358730052,1745404272585,-1000.0,0.00024314,14]
[358730053,1745404272600,-1000.0,0.00024314,14]
[358730054,1745404272614,-514.711448,0.00024314,14]
[358730055,1745404272629,-171.088319,0.00024314,7]
[358730056,1745404272643,-154.044068,0.00024314,2]
[358730057,1745404272657,-212.2166939,0.0002434,2]
[358730058,1745404272667,-2000.0,0.00024368,4]
[358730059,1745404272676,-500.0,0.00024383,2]
[358730060,1745404272685,-151.0,0.000244,9]
[358730061,1745404272694,-615.425,0.00024418,7]
[358730062,1745404272704,-172.663,0.00024418,7]
[358730063,1745404272714,-544.0,0.00024461,2]
[358730064,1745404272723,-706.0,0.00024461,2]
[358730065,1745404272733,-2246.0,0.00024461,2]
[358730066,1745404272743,-12500.0,0.0002449,3]
[358730067,1745404272752,-12500.0,0.00024499,3]
[358730068,1745404272762,-160.0,0.000245,3]
[358730069,1745404272772,-839.95942076,0.000245,3]
[358730070,1745404272782,-420.82143104,0.000245,3]
[358730071,1745404272791,-151.0,0.00024507,7]
[358730072,1745404272801,-151.0,0.00024507,7]
[358730073,1745404272811,-151.0,0.00024507,2]
[358730074,1745404272820,-151.0,0.00024507,2]
[358730075,1745404272830,-12500.0,0.00024507,3]
[358730076,1745404272841,-12500.0,0.00024516,3]
[358730077,1745404272851,-12500.0,0.00024525,3]
[358730078,1745404272860,-229.91,0.0002453,2]
[358730079,1745404272870,-245.2,0.0002453,2]
[358730080,1745404272879,-12500.0,0.00024534,3]
[358730081,1745404272889,-12500.0,0.00024543,3]
[358730082,1745404272899,-12500.0,0.00024551,3]
[358730083,1745404272908,-12500.0,0.0002456,3]
[358730084,1745404272918,-12500.0,0.00024569,3]
[358730085,1745404273225,-500.87,0.00024576,2]
[358730086,1745404273243,-922.11,0.00024576,2]
[358730087,1745404273258,-1826.39,0.00024576,2]
[358730088,1745404273275,-7833.37,0.00024576,2]
[358730089,1745404273284,-3314.96,0.00024576,2]
[358730090,1745404273294,-1346.69,0.00024576,2]
[358730091,1745404273305,-500.0,0.00024576,2]
[358730092,1745404273315,-965.63,0.00024576,2]
[358730093,1745404273325,-500.0,0.00024576,2]
[358730094,1745404273335,-538.66,0.00024576,2]
[358730095,1745404273344,-500.0,0.00024577,2]
[358730096,1745404273354,-686.58,0.00024577,2]
[358730097,1745404273363,-1103.57,0.00024577,2]
[358730098,1745404273372,-500.0,0.00024577,2]
[358730099,1745404273381,-1141.6,0.00024577,2]
[358730100,1745404273391,-500.0,0.00024577,2]
[358730101,1745404273400,-500.0,0.00024577,2]
[358730102,1745404273410,-500.0,0.00024577,2]
[358730103,1745404273420,-500.0,0.00024577,2]
[358730104,1745404273433,-527.8,0.00024577,2]
[358730105,1745404273442,-500.0,0.00024577,2]
[358730106,1745404273451,-5671.69773656,0.00024578,3]
[358730107,1745404273573,-6828.30226344,0.00024578,3]
[358730108,1745404273582,-494.99226777,0.00024578,2]
[358730109,1745404273594,-3403.98,0.00024578,2]
[358730110,1745404273602,-885.27,0.00024578,2]
[358730111,1745404273611,-2206.55,0.00024578,2]
[358730112,1745404273620,-998.75,0.00024578,2]
[358730113,1745404273629,-500.0,0.00024581,2]
[358730114,1745404273637,-500.0,0.00024581,2]
[358730115,1745404273646,-396.57009607,0.00024581,2]
[358730116,1745404273654,-617.65,0.00024581,2]
[358730117,1745404273662,-500.0,0.00024581,2]
[358730118,1745404273672,-446.7628654,0.00024581,2]
[358730119,1745404273681,-260.44,0.00024581,2]
[358730120,1745404273691,-655.03,0.00024581,2]
[358730121,1745404273700,-500.0,0.00024581,2]
[358730122,1745404273711,-1087.51,0.00024581,2]
[358730123,1745404273720,-527.71481549,0.00024581,2]
[358730124,1745404273729,-500.0,0.00024582,2]
[358730125,1745404273739,-500.0,0.00024582,2]
[358730126,1745404273748,-505.29,0.00024582,2]
[358730127,1745404273758,-156.806334,0.00024582,7]
[358730128,1745404273767,-516.37,0.00024582,2]
[358730129,1745404273776,-1131.9,0.00024584,2]
[358730130,1745404273786,-525.22,0.00024584,2]
[358730131,1745404273795,-500.0,0.00024584,2]
[358730132,1745404273805,-795.76,0.00024584,2]
[358730133,1745404273814,-956.21,0.00024584,2]
[358730134,1745404273824,-12500.0,0.00024587,3]
[358730135,1745404273833,-12500.0,0.00024595,3]
[358730136,1745404273844,-160.0,0.000246,3]
[358730137,1745404273853,-839.95942076,0.000246,3]
[358730138,1745404273863,-420.82143104,0.000246,3]
[358730139,1745404273873,-151.0,0.00024604,7]
[358730140,1745404273882,-12500.0,0.00024604,3]
[358730141,1745404273892,-12500.0,0.00024604,3]
[358730142,1745404273901,-12500.0,0.00024613,3]
[358730143,1745404273910,-12500.0,0.00024613,3]
[358730144,1745404273918,-12500.0,0.00024622,3]
[358730145,1745404273928,-12500.0,0.00024622,3]
[358730146,1745404273937,-153.0,0.0002463,2]
[358730147,1745404273947,-153.0,0.0002463,2]
[358730148,1745404273956,-153.0,0.0002463,2]
[358730149,1745404273966,-153.0,0.0002463,2]
[358730150,1745404273975,-12500.0,0.00024631,3]
[358730151,1745404273985,-160.0,0.00024631,3]
[358730152,1745404273995,-12500.0,0.00024631,3]
[358730153,1745404274004,-151.0,0.00024639,7]
[358730154,1745404274015,-12500.0,0.00024639,3]
[358730155,1745404274024,-12500.0,0.00024639,3]
[358730156,1745404274033,-151.0,0.00024648,7]
[358730157,1745404274043,-1106.000768,0.00024648,7]
[358730158,1745404274053,-1106.000768,0.00024648,7]
[358730159,1745404274063,-12500.0,0.00024648,3]
[358730160,1745404274072,-12500.0,0.00024648,3]
[358730161,1745404274082,-12500.0,0.00024657,3]
[358730162,1745404274093,-650.0,0.00024658,2]
[358730163,1745404274103,-500.0,0.00024658,2]
[358730164,1745404274113,-251.21306039,0.00024658,2]
[358730165,1745404274123,-500.0,0.00024658,2]
[358730166,1745404274132,-175.02352622,0.00024658,2]
[358730167,1745404274142,-161.149912,0.000247,3]
[358730168,1745404274151,-178.285339,0.000247,3]
[358730169,1745404274162,-7222.55068407,0.00024728,5]
[358730170,1745404274172,-151.0,0.000248,7]
[358730171,1745404274182,-151.0,0.00024844,2]
[358730172,1745404274191,-500.87,0.0002485,2]
[358730173,1745404274201,-922.11,0.0002485,2]
[358730174,1745404274210,-1826.39,0.0002485,2]
[358730175,1745404274220,-7833.37,0.0002485,2]
[358730176,1745404274230,-3314.96,0.0002485,2]
[358730177,1745404274240,-1346.69,0.0002485,2]
[358730178,1745404274250,-500.0,0.0002485,2]
[358730179,1745404274259,-965.63,0.0002485,2]
[358730180,1745404274270,-500.0,0.0002485,2]
[358730181,1745404274279,-538.66,0.0002485,2]
[358730182,1745404274289,-500.0,0.00024851,2]
[358730183,1745404274298,-686.58,0.00024851,2]
[358730184,1745404274308,-1103.57,0.00024851,2]
[358730185,1745404274317,-500.0,0.00024851,2]
[358730186,1745404274327,-1141.6,0.00024851,2]
[358730187,1745404274336,-500.0,0.00024851,2]
[358730188,1745404274346,-500.0,0.00024851,2]
[358730189,1745404274355,-500.0,0.00024851,2]
[358730190,1745404274365,-500.0,0.00024851,2]
[358730191,1745404274374,-527.8,0.00024851,2]
[358730192,1745404274384,-500.0,0.00024851,2]
[358730193,1745404274393,-3403.98,0.00024852,2]
[358730194,1745404274403,-885.27,0.00024852,2]
[358730195,1745404274412,-2206.55,0.00024852,2]
[358730196,1745404274425,-998.75,0.00024852,2]